[Event "Slovakian-ch Youth 2022"]
[Site "Lubovna"]
[Date "2022.05.24"]
[Round "5.3"]
[White "Durana, Jonas"]
[Black "Magda, Filip"]
[Result "1-0"]
[ECO "B24"]
[WhiteElo "1644"]
[BlackElo "1624"]
[Annotator "NA COMBH"]
[PlyCount "101"]
[EventDate "2022.05.22"]
[EventCountry "SVK"]
[SourceTitle "playchess.com"]
[Source "ChessBase"]
[SourceQuality "1"]
[TimeControl "40/5400+30:1800+30"]

1. e4 {[%emt 0:00:18]} c5 {[%emt 0:00:28]} 2. Nc3 {[%emt 0:00:19]} Nc6 {[%emt 0:00:44]} 3. Bb5 {[%emt 0:00:22]} d6 {[%emt 0:01:20]} 4. Nf3 {[%emt 0:00:37]} Bd7 {[%emt 0:00:46]} 5. d4 {[%emt 0:01:00]} cxd4 {[%emt 0:00:34]} 6. Nxd4 {[%emt 0:00:09]} Nf6 {[%emt 0:00:53]} 7. O-O {[%emt 0:01:47]} g6 {[%emt 0:01:00]} 8. Be3 {[%emt 0:04:50]} Bg7 {[%emt 0:02:09]} 9. Re1 {[%emt 0:02:23]} O-O {[%emt 0:01:44]} 10. h3 {[%emt 0:06:32]} a6 {[%emt 0:04:09]} 11. Nxc6 {[%emt 0:02:19]} bxc6 {[%emt 0:02:48]} 12. Bc4 {[%emt 0:01:17]} Qc8 {[%emt 0:05:46]} 13. Qd2 {[%emt 0:03:28]} Rb8 {[%emt 0:01:31]} 14. Rab1 {[%emt 0:06:39]} c5 {[%emt 0:02:44]} 15. Bh6 {[%emt 0:03:43]} Bc6 {[%emt 0:05:35]} 16. Bxg7 {[%emt 0:00:38]} Kxg7 {[%emt 0:00:06]} 17. Qd3 {[%emt 0:00:28]} Rb6 {[%emt 0:04:28]} 18. a4 {[%emt 0:05:54]} a5 {[%emt 0:05:59]} 19. b3 {[%emt 0:01:17]} Rd8 {[%emt 0:08:37]} 20. Nd5 {[%emt 0:00:59]} Bxd5 {[%emt 0:02:03]} 21. exd5 {[%emt 0:00:25]} Qb7 {[%emt 0:01:21]} 22. Re2 {[%emt 0:05:45]} Rd7 {[%emt 0:07:39]} 23. Bb5 {[%emt 0:01:43]} Rc7 {[%emt 0:00:30]} 24. Bc6 {[%emt 0:00:25]} Qa7 {[%emt 0:02:11]} 25. Bb5 {[%emt 0:01:56]} Nh5 {[%emt 0:05:49]} 26. g3 {[%emt 0:08:01]} Kg8 {[%emt 0:01:29]} 27. Rbe1 {[%emt 0:02:33]} Ng7 {[%emt 0:03:12]} 28. g4 {[%emt 0:02:34]} e6 {[%emt 0:01:27]} 29. c4 {[%emt 0:00:29]} e5 {[%emt 0:01:39]} 30. f4 {[%emt 0:03:36]} f6 {[%emt 0:02:02]} 31. fxe5 {[%emt 0:03:10]} fxe5 {[%emt 0:00:38]} 32. Rf1 {[%emt 0:00:24]} Rf7 {[%emt 0:02:25]} 33. Rxf7 {[%emt 0:00:42]} Qxf7 {[%emt 0:03:31]} 34. Rf2 {[%emt 0:00:07]} Qe7 {[%emt 0:00:06]} 35. Qf3 {[%emt 0:00:56]} Ne8 {[%emt 0:05:25]} 36. Kf1 {[%emt 0:05:54]} h6 {[%emt 0:02:29]} 37. Ke1 {[%emt 0:06:36]} g5 {[%emt 0:05:43]} 38. Kd1 {[%emt 0:01:26]} Rb7 {[%emt 0:01:00]} 39. Kc2 {[%emt 0:01:14]} Qf7 {[%emt 0:03:05]} 40. Bxe8 {[%emt 0:00:17]} Qxe8 {[%emt 0:00:20]} 41. Qf6 {[%emt 0:30:21]} Qe7 {[%emt 0:10:27]} 42. Qg6+ {[%emt 0:00:00]} Kh8 {[%emt 0:03:37]} 43. Rf6 {[%emt 0:00:00]} Qg7 {[%emt 0:04:30]} 44. Rxd6 {[%emt 0:00:00]} Qxg6+ {[%emt 0:00:30]} 45. Rxg6 {[%emt 0:00:00]} Kh7 {[%emt 0:00:13]} 46. Re6 {[%emt 0:00:00]} Kg7 {[%emt 0:00:48]} 47. Rxe5 {[%emt 0:00:00]} Rf7 {[%emt 0:01:10]} 48. d6 {[%emt 0:00:00]} Kf6 {[%emt 0:02:43]} 49. Rxc5 {[%emt 0:00:00]} Ke6 {[%emt 0:00:16]} 50. Rxa5 {[%emt 0:00:00]} Kxd6 {[%emt 0:00:09]} 51. Ra6+ {[%emt 0:00:00]} 1-0

[Event "Slovakian-ch Youth 2022"]
[Site "Lubovna"]
[Date "2022.05.24"]
[Round "5.4"]
[White "Gyerpal, Adrian"]
[Black "Stevik, Patrik"]
[Result "1/2-1/2"]
[ECO "E71"]
[WhiteElo "2171"]
[BlackElo "2249"]
[Annotator "TA"]
[PlyCount "123"]
[EventDate "2022.05.22"]
[EventCountry "SVK"]
[SourceTitle "playchess.com"]
[Source "ChessBase"]
[SourceQuality "1"]
[TimeControl "40/5400+30:1800+30"]

{[%evp 10,123,47,25,61,47,103,92,88,81,144,152,189,188,188,192,224,99,103,107,101,93,107,107,101,93,93,86,332,137,131,102,127,110,127,102,90,97,108,108,104,99,84,31,35,35,43,38,47,28,54,64,62,55,49,59,131,129,623,623,614,559,548,281,275,245,245,245,262,262,262,262,270,260,264,267,284,270,284,284,277,253,331,253,314,341,288,262,262,262,2731,1900,5712,4897,29966,29967,29964,29965,29959,172,172,20,20,20,20,20,20,20,20,20,20,0,0,0,0,0]} 1. e4 {[%emt 0:00:11]} g6 {[%emt 0:08:32]} 2. d4 {[%emt 0:00:06]} Bg7 {[%emt 0:00:30]} 3. c4 {[%emt 0:00:28]} d6 {[%emt 0:00:29]} 4. Nc3 {[%emt 0:00:58]} Nf6 {[%emt 0:00:24]} 5. h3 {[%emt 0:00:54]} O-O {[%emt 0:00:31]} 6. Be3 {[%emt 0:00:15]} a6 {[%emt 0:00:40] E71: King's Indian: 4 e4 d6 5 h3.} 7. Nf3 {[%emt 0:02:10]} c5 {[%emt 0:04:15]} (7... Nfd7 $14) 8. dxc5 $16 {[%emt 0:06:49]} Qa5 {[%emt 0:01:10][%csl LRc5,LRe4] Strongly threatening ...Nxe4. White is better.} 9. Nd2 {[%emt 0:01:02] [#]} ({Don't play} 9. cxd6 $6 Nxe4 10. dxe7 Re8 $15) 9... Qb4 $146 {[%emt 0:05:45]} ({Black should try} 9... dxc5 10. e5 Nfd7) ({Predecessor:} 9... dxc5 10. Nb3 Qc7 11. Nxc5 Rd8 12. Qc2 b6 13. Nb3 Be6 14. Nd4 Bxc4 15. Na4 b5 16. Bxc4 Qa5+ 17. Nc3 {½-½ (17) Olsen,F (2193)-Ramsdal,J (2175) Odense 2016}) 10. cxd6 {[%emt 0:13:56]} Qxb2 {[%emt 0:01:28]} 11. Na4 {[%emt 0:01:07]} Qe5 {[%emt 0:03:35]} 12. f4 {[%emt 0:08:09]} Qxd6 {[%emt 0:20:17]} 13. e5 {[%emt 0:14:43]} (13. Nb6 $18 {is the precise move to win.}) 13... Qa3 {[%emt 0:00:49]} 14. Qb3 {[%emt 0:10:58]} Qxb3 {[%emt 0:01:11]} 15. axb3 {[%emt 0:02:47] Nb6 is the strong threat.} Nfd7 {[%emt 0:00:56]} 16. c5 {[%emt 0:01:46]} Nc6 {[%emt 0:01:30]} 17. Nc4 {[%emt 0:01:30]} Rd8 {[%emt 0:05:40]} 18. O-O-O {[%emt 0:06:17]} f6 $2 {[%emt 0:04:18] [#]} (18... Nf8 $16) 19. exf6 {[%emt 0:03:34]} (19. e6 $1 $18 {and the rest is easy.}) 19... Nxf6 {[%emt 0:03:07]} 20. Rxd8+ {[%emt 0:05:16]} Nxd8 {[%emt 0:01:46]} 21. Nab6 {[%emt 0:01:27]} Rb8 {[%emt 0:00:14]} 22. Nxc8 {[%emt 0:00:22]} Rxc8 {[%emt 0:00:09]} 23. Nb6 {[%emt 0:00:09] Prevents Nd5.} Rc7 {[%emt 0:04:51]} 24. Bc4+ {[%emt 0:01:17]} Kf8 {[%emt 0:00:20]} 25. Rd1 {[%emt 0:03:25]} Ke8 {[%emt 0:01:00]} 26. b4 {[%emt 0:02:21] 0x0.000842f4d6c1dp-1022s more active pieces.} (26. g4 $16) 26... Nc6 $1 $14 {[%emt 0:01:52]} 27. Bd2 {[%emt 0:00:49]} Ne4 {[%emt 0:01:32]} 28. Be1 {[%emt 0:00:46]} a5 $1 {[%emt 0:07:57]} 29. Nd5 {[%emt 0:01:50]} Rd7 {[%emt 0:02:38]} 30. b5 $36 {[%emt 0:00:45][%mdl 2048] White fights for an advantage.} Nd4 {[%emt 0:01:34]} 31. c6 {[%emt 0:00:49]} bxc6 {[%emt 0:00:07]} 32. bxc6 {[%emt 0:00:09]} Nxc6 {[%emt 0:04:40]} (32... Ra7 $1 $14) 33. Bb5 $16 {[%emt 0:04:17]} Nd4 {[%emt 0:06:15][%mdl 8192]} 34. Nc7+ $18 {[%emt 0:02:59]} Kd8 {[%emt 0:01:30] [#]} 35. Ne6+ {[%emt 0:00:32][%mdl 512]} Nxe6 {[%emt 0:01:39]} 36. Bxa5+ {[%emt 0:01:34]} Ke8 {[%emt 0:00:02][%cal Oe4d6]} 37. Bxd7+ {[%emt 0:00:20] This bishop pair is nice.} Kf7 {[%emt 0:00:03]} 38. Re1 {[%emt 0:00:49]} N6c5 {[%emt 0:02:08] [#]} 39. Kc2 $1 {[%emt 0:00:18]} Nxd7 {[%emt 0:02:15]} 40. Rxe4 {[%emt 0:00:09][%mdl 4096] Endgame KRB-KBN} Nf6 {[%emt 0:01:17]} 41. Re2 {[%emt 0:04:02]} Nd5 {[%emt 0:01:07]} 42. g3 {[%emt 0:01:34][%cal Bg2g3,Bg3g4][%mdl 32]} h5 {[%emt 0:01:11]} 43. Bd2 {[%emt 0:02:54]} Bf6 {[%emt 0:01:23]} 44. Kd3 {[%emt 0:00:58]} Nc7 {[%emt 0:00:32]} 45. Ke4 {[%emt 0:01:56]} Ne6 {[%emt 0:00:46]} 46. Be3 {[%emt 0:01:03]} Ng7 {[%emt 0:01:57]} 47. g4 {[%emt 0:01:38]} Ne6 {[%emt 0:03:34]} 48. Rc2 {[%emt 0:02:44] Prevents Bc3.} Ng7 {[%emt 0:01:46]} 49. Bd4 {[%emt 0:10:49]} hxg4 $2 {[%emt 0:05:26]} (49... Ne8 50. Be5 Bh4) 50. Bxf6 {[%emt 0:02:12]} Kxf6 {[%emt 0:00:27]} 51. hxg4 {[%emt 0:01:39] KR-KN} Ne8 {[%emt 0:00:10]} 52. Rc6+ {[%emt 0:00:54]} Kf7 {[%emt 0:02:17]} 53. Ke5 {[%emt 0:00:32]} Ng7 {[%emt 0:02:10]} 54. f5 $2 {[%emt 0:01:42]} (54. Ra6 {mates} Ne8 55. Rc6 Ng7 56. Rb6 Ne8 57. Re6 Ng7 58. Rc6 Ne8 59. f5 gxf5 60. Kxf5) 54... gxf5 {[%emt 0:00:22]} 55. g5 {[%emt 0:00:52]} ({White has to play} 55. gxf5 $18 {Threatens to win with Rh6.} Nh5 56. Rg6) 55... e6 $11 {[%emt 0:00:53] The position is equal.} 56. Rc7+ {[%emt 0:01:39]} Kg6 {[%emt 0:00:09]} 57. Rc1 {[%emt 0:00:24]} Nh5 {[%emt 0:02:23]} 58. Rg1 {[%emt 0:00:51]} Ng7 {[%emt 0:00:30]} 59. Rf1 {[%emt 0:01:02]} Nh5 {[%emt 0:00:20]} 60. Kxe6 {[%emt 0:00:41]} f4 {[%emt 0:01:04]} 61. Rg1 {[%emt 0:01:20]} Ng3 {[%emt 0:00:55]} 62. Ke5 {[%emt 0:00:18] White really could win this.  Weighted Error Value: White=0.36/Black=0.47} 1/2-1/2

[Event "Slovakian-ch Youth 2022"]
[Site "Lubovna"]
[Date "2022.05.24"]
[Round "5.4"]
[White "Visvader, Kristof"]
[Black "Vargosko, Juraj"]
[Result "0-1"]
[ECO "D51"]
[WhiteElo "1607"]
[BlackElo "1640"]
[Annotator "NA RC COMBH"]
[PlyCount "50"]
[EventDate "2022.05.22"]
[EventCountry "SVK"]
[SourceTitle "playchess.com"]
[Source "ChessBase"]
[SourceQuality "1"]
[TimeControl "40/5400+30:1800+30"]

1. d4 {[%emt 0:00:04]} Nf6 {[%emt 0:00:10]} 2. c4 {[%emt 0:00:10]} e6 {[%emt 0:00:12]} 3. Nc3 {[%emt 0:00:45]} d5 {[%emt 0:00:36]} 4. Bg5 {[%emt 0:00:43]} c6 {[%emt 0:01:14]} 5. e3 {[%emt 0:01:15]} Nbd7 {[%emt 0:00:49]} 6. Qc2 {[%emt 0:01:01]} Bb4 {[%emt 0:01:49]} 7. cxd5 {[%emt 0:00:35]} exd5 {[%emt 0:00:56]} 8. Bd3 {[%emt 0:01:59]} h6 {[%emt 0:08:08]} 9. Bh4 {[%emt 0:01:06]} O-O {[%emt 0:02:39]} 10. Nge2 {[%emt 0:02:49]} Re8 {[%emt 0:05:25]} 11. O-O {[%emt 0:01:27]} Nf8 {[%emt 0:08:51]} 12. Rae1 {[%emt 0:07:36]} Bd6 {[%emt 0:05:21]} 13. Qd2 {[%emt 0:05:18]} Bxh2+ {[%emt 0:03:59]} 14. Kxh2 {[%emt 0:02:33]} Ng4+ {[%emt 0:00:24]} 15. Kg3 {[%emt 0:00:59]} g5 {[%emt 0:03:41]} 16. f3 {[%emt 0:12:45]} gxh4+ {[%emt 0:30:23]} 17. Kh3 {[%emt 0:00:34]} Nxe3+ {[%emt 0:11:15]} 18. Kh2 {[%emt 0:00:10]} Qg5 {[%emt 0:00:52]} 19. Nf4 {[%emt 0:00:44]} Qxf4+ {[%emt 0:03:27]} 20. Kg1 {[%emt 0:00:10]} h3 {[%emt 0:03:37]} 21. Rf2 {[%emt 0:00:09]} hxg2 {[%emt 0:03:11]} 22. Rxg2+ {[%emt 0:00:02]} Kh8 {[%emt 0:01:04]} 23. Rh2 {[%emt 0:01:42]} Qg3+ {[%emt 0:00:30]} 24. Kh1 {[%emt 0:00:31]} Qxf3+ {[%emt 0:00:14]} 25. Kg1 {[%emt 0:00:20]} h5 0-1

[Event "Slovakian-ch Youth 2022"]
[Site "Lubovna"]
[Date "2022.05.24"]
[Round "5.5"]
[White "Nadzamova, Viktoria"]
[Black "Chlpek, Daniel"]
[Result "1/2-1/2"]
[ECO "A37"]
[WhiteElo "2135"]
[BlackElo "2030"]
[Annotator "TA"]
[PlyCount "48"]
[EventDate "2022.05.22"]
[EventCountry "SVK"]
[SourceTitle "playchess.com"]
[Source "ChessBase"]
[SourceQuality "1"]
[TimeControl "40/5400+30:1800+30"]

{[%evp 22,48,8,10,18,5,23,17,0,-24,0,-54,-35,-45,-35,-35,-37,-34,-21,-33,16,16,29,22,17,0,0,-30,-14]} 1. Nf3 {[%emt 0:00:34]} c5 {[%emt 0:00:04]} 2. c4 {[%emt 0:00:21]} Nc6 {[%emt 0:00:11]} 3. g3 {[%emt 0:00:31]} g6 {[%emt 0:00:06]} 4. Bg2 {[%emt 0:00:20]} Bg7 {[%emt 0:00:07]} 5. O-O {[%emt 0:01:04]} e5 {[%emt 0:00:02]} 6. Nc3 {[%emt 0:00:25]} Nge7 {[%emt 0:00:09]} 7. a3 {[%emt 0:03:21]} a5 {[%emt 0:02:21]} 8. d3 {[%emt 0:03:27]} d6 {[%emt 0:00:19]} 9. Ne1 {[%emt 0:05:12][%cal Bf3e1,Be1c2,Bc2a3,Ba3c4][%mdl 32]} Be6 {[%emt 0:00:05]} 10. Rb1 {[%emt 0:03:44]} O-O {[%emt 0:02:37]} 11. Bg5 {[%emt 0:02:35]} f6 {[%emt 0:07:05]} 12. Bd2 {[%emt 0:00:33]} Bf7 {[%emt 0:04:08] A37: Symmetrical English vs ...g6: 4 Bg2 Bg7 5 Nf3.} 13. Nc2 {[%emt 0:15:09]} d5 {[%emt 0:07:24]} 14. cxd5 {[%emt 0:01:56]} Nxd5 {[%emt 0:02:13] [#] The position is equal.} 15. Ne4 $146 {[%emt 0:01:10]} ({Predecessor:} 15. Nxd5 Bxd5 16. Bxd5+ Qxd5 17. Ne3 Qe6 18. Rc1 b6 19. Nc4 Rab8 20. Re1 Rfd8 21. Qb3 {0-1 (32) Dornbusch,T (2249)-Ragger,M (2680) Tornelo INT 2021}) 15... Qe7 {[%emt 0:08:45]} 16. a4 {[%emt 0:18:35]} (16. Rc1 $11) 16... Nc7 {[%emt 0:11:38]} 17. Na3 {[%emt 0:03:25]} Rfd8 {[%emt 0:15:10]} 18. b3 {[%emt 0:00:51]} Nd5 {[%emt 0:01:21]} 19. Nc4 {[%emt 0:01:33]} b6 {[%emt 0:00:27]} 20. f4 {[%emt 0:04:22]} h6 {[%emt 0:07:15]} (20... exf4 $15 {is superior.} 21. gxf4 f5) 21. Nc3 $11 {[%emt 0:04:52] [#] Hoping for Bxd5.} Rab8 {[%emt 0:01:49]} 22. fxe5 {[%emt 0:03:53]} Nxe5 {[%emt 0:02:16]} 23. Nxe5 {[%emt 0:01:12]} fxe5 {[%emt 0:00:20]} ({But not} 23... Qxe5 24. Nxd5 Bxd5 25. Bf4 $16) 24. Ne4 {[%emt 0:03:42]} Be6 {[%emt 0:02:01] Weighted Error Value: White=0.14 (very precise) /Black=0.13 (very precise)} 1/2-1/2

[Event "Slovakian-ch Youth 2022"]
[Site "Lubovna"]
[Date "2022.05.24"]
[Round "5.5"]
[White "Pongo, Aron"]
[Black "Gollner, Martin"]
[Result "0-1"]
[ECO "A59"]
[WhiteElo "1566"]
[BlackElo "1585"]
[Annotator "NA RC COMBH"]
[PlyCount "37"]
[EventDate "2022.05.22"]
[EventCountry "SVK"]
[SourceTitle "playchess.com"]
[Source "ChessBase"]
[SourceQuality "1"]
[TimeControl "40/5400+30:1800+30"]

1. d4 {[%emt 0:00:01]} Nf6 {[%emt 0:10:04]} 2. c4 {[%emt 0:00:02]} c5 {[%emt 0:00:03]} 3. d5 {[%emt 0:00:04]} b5 {[%emt 0:00:02]} 4. cxb5 {[%emt 0:00:06]} a6 {[%emt 0:00:02]} 5. bxa6 {[%emt 0:00:09]} Bxa6 {[%emt 0:00:03]} 6. Nc3 {[%emt 0:00:18]} d6 {[%emt 0:00:04]} 7. e4 {[%emt 0:00:03]} Bxf1 {[%emt 0:00:05]} 8. Kxf1 {[%emt 0:00:02]} g6 {[%emt 0:00:09]} 9. g3 {[%emt 0:00:13]} Bg7 {[%emt 0:00:04]} 10. Kg2 {[%emt 0:00:10]} O-O {[%emt 0:00:12]} 11. Nf3 {[%emt 0:00:03]} Nbd7 {[%emt 0:00:28]} 12. a4 {[%emt 0:00:04]} Qa5 {[%emt 0:00:17]} 13. Qc2 {[%emt 0:03:19]} Rfb8 {[%emt 0:01:02]} 14. Bd2 {[%emt 0:03:56]} Qb4 {[%emt 0:07:51]} 15. Nb5 {[%emt 0:01:40]} Qxe4 {[%emt 0:00:22]} 16. Qxe4 {[%emt 0:13:15]} Nxe4 {[%emt 0:00:02]} 17. Bc3 {[%emt 0:02:31]} Nxc3 {[%emt 0:00:35]} 18. bxc3 {[%emt 0:01:37]} Nb6 {[%emt 0:01:42]} 19. a5 {[%emt 0:06:38]} 0-1

[Event "Slovakian-ch Youth 2022"]
[Site "Lubovna"]
[Date "2022.05.24"]
[Round "5.6"]
[White "Zdrazil, Patrik"]
[Black "Vadila, Ondrej"]
[Result "1/2-1/2"]
[ECO "D27"]
[WhiteElo "1997"]
[BlackElo "2082"]
[Annotator "TA"]
[PlyCount "51"]
[EventDate "2022.05.22"]
[EventCountry "SVK"]
[SourceTitle "playchess.com"]
[Source "ChessBase"]
[SourceQuality "1"]
[TimeControl "40/5400+30:1800+30"]

{[%evp 22,51,0,0,0,-29,-18,-23,0,-62,0,-27,13,-9,0,-7,38,23,13,32,117,134,128,104,186,216,710,728,967,951,29988,0]} 1. e4 {[%emt 0:00:12]} c5 {[%emt 0:00:39]} 2. Nf3 {[%emt 0:00:05]} a6 {[%emt 0:00:03]} 3. c3 {[%emt 0:00:07]} d5 {[%emt 0:00:05]} 4. exd5 {[%emt 0:02:03]} Qxd5 {[%emt 0:00:05]} 5. d4 {[%emt 0:00:10]} e6 {[%emt 0:00:04]} 6. Be2 {[%emt 0:05:52]} Nf6 {[%emt 0:00:06]} 7. O-O {[%emt 0:00:25]} cxd4 {[%emt 0:00:34]} 8. cxd4 {[%emt 0:00:15]} Be7 {[%emt 0:00:37]} 9. Nc3 {[%emt 0:05:52]} Qd8 {[%emt 0:00:12]} 10. Re1 {[%emt 0:01:35]} Nc6 {[%emt 0:01:08]} 11. a3 {[%emt 0:02:39]} O-O {[%emt 0:02:29]} 12. Bd3 {[%emt 0:06:10]} b5 {[%emt 0:12:12] D27: Queen's Gambit Accepted: Classical main line: 7 e4!? and 7 a4.} 13. b4 {[%emt 0:08:33]} Bb7 {[%emt 0:12:40]} 14. Bb2 {[%emt 0:00:57]} Qb6 {[%emt 0:20:14] Black has an edge.} 15. Qd2 {[%emt 0:14:40] [#]} ({Better is} 15. Qc2 $11) 15... Rad8 $146 {[%emt 0:10:19]} (15... a5 $15) ({Predecessor:} 15... Rfd8 16. Rad1 a5 17. bxa5 Rxa5 18. Ne4 Nxe4 19. Rxe4 b4 20. Rg4 bxa3 {1-0 (37) Menvielle Laccourreye,A (2240)-Cuadras Avellana,J (2200) Las Palmas 1983}) 16. Rad1 {[%emt 0:00:27]} Rfe8 {[%emt 0:03:53]} 17. Qc2 {[%emt 0:20:00]} Rc8 {[%emt 0:07:53]} ({Don't do} 17... Nxd4 18. Nxd4 Qxd4 19. Bxh7+ $1 {[%mdl 512]} Nxh7 20. Rxd4 Rxd4 21. h3 $16 (21. Nxb5 Rg4 $11)) 18. Qe2 {[%emt 0:02:37]} (18. Qb1 {with more complications.} Nb8 19. Ng5 h6 20. Nxf7 Kxf7 21. Bg6+) 18... a5 {[%emt 0:08:40]} 19. bxa5 {[%emt 0:08:43]} ({But not} 19. Bxb5 axb4 20. axb4 Bxb4 $15) (19. d5 {keeps more tension.} exd5 20. Nxd5 Nxd5 21. Qe4) 19... Nxa5 {[%emt 0:00:17]} 20. Bxb5 {[%emt 0:00:43]} Bxf3 {[%emt 0:00:07]} (20... Bc6 $14) 21. gxf3 $16 {[%emt 0:00:05]} Red8 {[%emt 0:04:53][%cal Oe7a3] [#]} 22. d5 $1 {[%emt 0:05:40]} Nxd5 {[%emt 0:00:53]} (22... Rd6 $16 {keeps fighting.}) 23. Nxd5 $18 {[%emt 0:00:08]} Rxd5 {[%emt 0:00:06]} (23... exd5 24. Qxe7 Qxb5) 24. Rxd5 {[%emt 0:00:15]} exd5 {[%emt 0:00:07]} 25. Qxe7 {[%emt 0:00:08][%cal Oe7e8] White wants to mate with Qe8+!} Qxb5 {[%emt 0:00:14]} 26. Bxg7 $2 {[%emt 0:00:13] Weighted Error Value: White=0.19 (very precise) /Black=0.91} 1/2-1/2

[Event "Slovakian-ch Youth 2022"]
[Site "Lubovna"]
[Date "2022.05.24"]
[Round "5.6"]
[White "Polomsky, Tomas"]
[Black "Hasala, Richard"]
[Result "1-0"]
[ECO "D02"]
[WhiteElo "1467"]
[BlackElo "1318"]
[Annotator "NA COMBH"]
[PlyCount "87"]
[EventDate "2022.05.22"]
[EventCountry "SVK"]
[SourceTitle "playchess.com"]
[Source "ChessBase"]
[SourceQuality "1"]
[TimeControl "40/5400+30:1800+30"]

1. d4 {[%emt 0:00:10]} d5 {[%emt 0:00:17]} 2. Nf3 {[%emt 0:00:47]} Bg4 {[%emt 0:01:25]} 3. Nbd2 {[%emt 0:01:33]} e6 {[%emt 0:00:27]} 4. e3 {[%emt 0:04:13]} Bd6 {[%emt 0:01:46]} 5. Bd3 {[%emt 0:01:39]} Nf6 {[%emt 0:01:00]} 6. Qe2 {[%emt 0:03:59]} c6 {[%emt 0:03:56]} 7. h3 {[%emt 0:03:42]} Bh5 {[%emt 0:00:14]} 8. e4 {[%emt 0:04:29]} dxe4 {[%emt 0:07:16]} 9. Nxe4 {[%emt 0:00:33]} Nxe4 {[%emt 0:00:33]} 10. Bxe4 Be7 {[%emt 0:06:15]} 11. Be3 {[%emt 0:04:17]} Bg6 {[%emt 0:03:39]} 12. Bxg6 {[%emt 0:04:52]} hxg6 {[%emt 0:00:07]} 13. c3 {[%emt 0:05:06]} g5 {[%emt 0:04:41]} 14. O-O-O {[%emt 0:01:13]} Qa5 {[%emt 0:01:00]} 15. Kb1 {[%emt 0:01:50]} Na6 {[%emt 0:02:10]} 16. Ne5 {[%emt 0:03:36]} Qd5 {[%emt 0:03:13]} 17. Qf3 {[%emt 0:03:14]} f6 {[%emt 0:04:04]} 18. Qxd5 {[%emt 0:01:14]} cxd5 {[%emt 0:00:23]} 19. Nf3 {[%emt 0:03:06]} b5 {[%emt 0:01:36]} 20. Rhe1 {[%emt 0:00:52]} Kf7 {[%emt 0:00:57]} 21. Re2 {[%emt 0:02:48]} b4 {[%emt 0:01:33]} 22. Bd2 {[%emt 0:02:45]} bxc3 {[%emt 0:00:55]} 23. Bxc3 {[%emt 0:01:17]} Bd6 {[%emt 0:03:43]} 24. Bd2 {[%emt 0:03:28]} Bb4 {[%emt 0:08:15]} 25. Rde1 {[%emt 0:07:20]} Bxd2 {[%emt 0:01:30]} 26. Nxd2 {[%emt 0:00:23]} Rae8 {[%emt 0:02:01]} 27. Re3 {[%emt 0:02:31]} Rh4 {[%emt 0:03:07]} 28. Nf3 {[%emt 0:00:41]} Rhh8 {[%emt 0:04:35]} 29. Ra3 {[%emt 0:00:16]} Nb4 {[%emt 0:01:19]} 30. Rxa7+ {[%emt 0:02:10]} Re7 {[%emt 0:00:10]} 31. Rxe7+ {[%emt 0:01:15]} Kxe7 {[%emt 0:00:02]} 32. Re3 {[%emt 0:02:58]} Kd6 {[%emt 0:01:44]} 33. a3 {[%emt 0:02:31]} Nc6 {[%emt 0:01:13]} 34. Kc2 {[%emt 0:01:27]} Rc8 {[%emt 0:01:29]} 35. Rc3 {[%emt 0:03:27]} Ra8 {[%emt 0:02:58]} 36. Kd3 {[%emt 0:05:30]} Na5 {[%emt 0:00:44]} 37. Nd2 {[%emt 0:04:33]} Rb8 {[%emt 0:05:25]} 38. b4 {[%emt 0:01:30]} Nc6 {[%emt 0:00:46]} 39. Nb3 {[%emt 0:01:23]} Ne7 {[%emt 0:02:32]} 40. Rc5 {[%emt 0:02:59]} Nf5 {[%emt 0:01:11]} 41. b5 {[%emt 0:33:35]} Ra8 {[%emt 0:30:51]} 42. Rc6+ {[%emt 0:00:30]} Ke7 {[%emt 0:00:18]} 43. Ra6 {[%emt 0:00:34]} Rxa6 {[%emt 0:00:30]} 44. bxa6 {[%emt 0:00:10]} 1-0